[Event "GrandPrix_30.05"]
[Site "Chess.com"]
[Date "2020.05.30"]
[Round "1"]
[White "Murad_Ibrahimli"]
[Black "Tyoma88888"]
[Result "1-0"]
[WhiteElo "2613"]
[BlackElo "2171"]
[TimeControl "600+2"]
[EndTime "8:22:07 PDT"]
[Termination "Murad_Ibrahimli won by resignation"]

1. d4 {[%clk 0:10:01.4]} 1... d5 {[%clk 0:10:00.7]} 2. c4 {[%clk 0:10:01.7]}
2... e6 {[%clk 0:10:01.9]} 3. Nf3 {[%clk 0:09:08.8]} 3... Nf6 {[%clk 0:10:02.7]}
4. g3 {[%clk 0:09:09.4]} 4... Be7 {[%clk 0:10:03.6]} 5. Bg2 {[%clk 0:09:09.4]}
5... O-O {[%clk 0:10:04.5]} 6. O-O {[%clk 0:09:10.8]} 6... dxc4 {[%clk
0:10:05.8]} 7. Qc2 {[%clk 0:09:11.8]} 7... a6 {[%clk 0:10:05.8]} 8. a4 {[%clk
0:09:12.9]} 8... Bd7 {[%clk 0:10:06.5]} 9. Qxc4 {[%clk 0:09:14.1]} 9... Bc6
{[%clk 0:10:07.7]} 10. Bg5 {[%clk 0:09:13.2]} 10... Nbd7 {[%clk 0:10:08.6]} 11.
Nc3 {[%clk 0:09:12.4]} 11... h6 {[%clk 0:10:09.7]} 12. Bxf6 {[%clk 0:09:07]}
12... Nxf6 {[%clk 0:10:11.6]} 13. Ne5 {[%clk 0:09:03.2]} 13... Bxg2 {[%clk
0:10:09.5]} 14. Kxg2 {[%clk 0:08:58.4]} 14... a5 {[%clk 0:10:09.2]} 15. e4
{[%clk 0:08:18.6]} 15... c6 {[%clk 0:10:05.5]} 16. Rfd1 {[%clk 0:07:36]} 16...
Qd6 {[%clk 0:09:56.5]} 17. f3 {[%clk 0:07:21.9]} 17... Qb4 {[%clk 0:09:55.8]}
18. Rd2 {[%clk 0:07:17.5]} 18... Rfd8 {[%clk 0:09:53.7]} 19. Rad1 {[%clk
0:07:17.3]} 19... Rac8 {[%clk 0:09:47.1]} 20. Na2 {[%clk 0:06:49.6]} 20... Qb6
{[%clk 0:09:16.3]} 21. Nc3 {[%clk 0:06:45.8]} 21... Qb4 {[%clk 0:09:15.4]} 22.
Na2 {[%clk 0:06:38]} 22... Qb6 {[%clk 0:09:15.1]} 23. Qc2 {[%clk 0:06:04.1]}
23... Bb4 {[%clk 0:08:38.3]} 24. Nc4 {[%clk 0:05:28.9]} 24... Qa7 {[%clk
0:08:14.2]} 25. Nxb4 {[%clk 0:05:18.6]} 25... axb4 {[%clk 0:08:16.1]} 26. a5
{[%clk 0:05:19.4]} 26... c5 {[%clk 0:07:23.9]} 27. d5 {[%clk 0:05:17.8]} 27...
exd5 {[%clk 0:07:15.4]} 28. exd5 {[%clk 0:05:18]} 28... Ne8 {[%clk 0:06:58.6]}
29. d6 {[%clk 0:04:58.5]} 29... Rc6 {[%clk 0:06:52.1]} 30. Qf5 {[%clk
0:04:33.7]} 30... Nf6 {[%clk 0:05:26.6]} 31. b3 {[%clk 0:03:58]} 31... Qb8
{[%clk 0:05:17.4]} 32. g4 {[%clk 0:02:52.1]} 32... Qc8 {[%clk 0:04:10.7]} 33.
Qxc8 {[%clk 0:02:30.2]} 33... Rcxc8 {[%clk 0:04:12.6]} 34. d7 {[%clk 0:02:29.2]}
34... Rc7 {[%clk 0:04:08.2]} 35. Nb6 {[%clk 0:02:30.3]} 35... Kf8 {[%clk
0:04:02.1]} 36. h4 {[%clk 0:02:29.3]} 36... g5 {[%clk 0:03:55.4]} 37. hxg5
{[%clk 0:02:26.7]} 37... hxg5 {[%clk 0:03:57.3]} 38. Rd6 {[%clk 0:02:11.8]}
38... Ng8 {[%clk 0:01:54]} 39. Na8 {[%clk 0:01:47.5]} 39... Rxa8 {[%clk
0:00:18.5]} 40. d8=Q+ {[%clk 0:01:45.5]} 40... Rxd8 {[%clk 0:00:20.4]} 41. Rxd8+
{[%clk 0:01:46.3]} 41... Kg7 {[%clk 0:00:22.3]} 42. R1d7 {[%clk 0:01:46.7]}
42... Rc6 {[%clk 0:00:22.2]} 43. Rxb7 {[%clk 0:01:46.6]} 43... Nf6 {[%clk
0:00:17.3]} 44. Rb6 {[%clk 0:01:38.2]} 44... Rc7 {[%clk 0:00:18.1]} 45. a6
{[%clk 0:01:39.1]} 45... Re7 {[%clk 0:00:14.7]} 46. Rb7 {[%clk 0:01:36.2]} 46...
Re2+ {[%clk 0:00:15.5]} 47. Kg3 {[%clk 0:01:37.2]} 47... Nd5 {[%clk 0:00:05.4]}
48. Rxd5 {[%clk 0:01:35.7]} 1-0

[Event "GrandPrix_30.05"]
[Site "Chess.com"]
[Date "2020.05.30"]
[Round "1"]
[White "Supernotar"]
[Black "grzechu96"]
[Result "1/2-1/2"]
[WhiteElo "2138"]
[BlackElo "2456"]
[TimeControl "600+2"]
[EndTime "8:22:09 PDT"]
[Termination "Game drawn by repetition"]

1. d4 {[%clk 0:10:01.9]} 1... d5 {[%clk 0:10:00]} 2. c4 {[%clk 0:09:58.6]} 2...
c6 {[%clk 0:10:01.1]} 3. e3 {[%clk 0:09:59.6]} 3... Nf6 {[%clk 0:10:00.3]} 4.
Bd3 {[%clk 0:10:00.2]} 4... Bg4 {[%clk 0:09:31.9]} 5. Qc2 {[%clk 0:10:00.4]}
5... e6 {[%clk 0:09:01.2]} 6. Nd2 {[%clk 0:10:00.7]} 6... Nbd7 {[%clk
0:08:57.4]} 7. Ngf3 {[%clk 0:10:01.2]} 7... Bd6 {[%clk 0:08:32.8]} 8. b3 {[%clk
0:10:01.5]} 8... e5 {[%clk 0:07:51.4]} 9. dxe5 {[%clk 0:09:49.6]} 9... Nxe5
{[%clk 0:07:52.1]} 10. Nxe5 {[%clk 0:09:48.4]} 10... Bxe5 {[%clk 0:07:54]} 11.
Bb2 {[%clk 0:09:46.3]} 11... Bxb2 {[%clk 0:07:54.4]} 12. Qxb2 {[%clk 0:09:47.3]}
12... dxc4 {[%clk 0:07:37.6]} 13. Bxc4 {[%clk 0:09:47.8]} 13... O-O {[%clk
0:07:38.8]} 14. a4 {[%clk 0:09:19.5]} 14... Qd6 {[%clk 0:07:25.4]} 15. O-O
{[%clk 0:09:01]} 15... Rad8 {[%clk 0:07:25.1]} 16. Nb1 {[%clk 0:08:47.5]} 16...
Be6 {[%clk 0:05:43.2]} 17. Bxe6 {[%clk 0:08:38.2]} 17... Qxe6 {[%clk 0:05:10.9]}
18. Nc3 {[%clk 0:08:27]} 18... Qe5 {[%clk 0:05:10.9]} 19. Qc2 {[%clk 0:08:07]}
19... Ng4 {[%clk 0:04:42.7]} 20. g3 {[%clk 0:08:06.5]} 20... Qh5 {[%clk
0:04:08.9]} 21. h4 {[%clk 0:08:06.8]} 21... Ne5 {[%clk 0:03:08.9]} 22. Rfd1
{[%clk 0:07:20]} 22... Nf3+ {[%clk 0:03:03.1]} 23. Kf1 {[%clk 0:07:16.1]} 23...
Qg4 {[%clk 0:02:29.4]} 24. Rxd8 {[%clk 0:06:11.5]} 24... Rxd8 {[%clk 0:02:31.3]}
25. Rd1 {[%clk 0:06:09.1]} 25... Rxd1+ {[%clk 0:01:53.8]} 26. Qxd1 {[%clk
0:06:06.9]} 26... h5 {[%clk 0:01:55.2]} 27. Qd8+ {[%clk 0:05:45.9]} 27... Kh7
{[%clk 0:01:55.3]} 28. Qd3+ {[%clk 0:05:36]} 28... Qg6 {[%clk 0:01:24.8]} 29.
Ke2 {[%clk 0:04:41]} 29... Ne5 {[%clk 0:01:20.9]} 30. Qe4 {[%clk 0:04:28.1]}
30... Nd7 {[%clk 0:01:12.7]} 31. Qxg6+ {[%clk 0:04:07.4]} 31... Kxg6 {[%clk
0:01:14.6]} 32. Ne4 {[%clk 0:03:37.7]} 32... b6 {[%clk 0:01:15.2]} 33. Nd6
{[%clk 0:03:09.8]} 33... Kf6 {[%clk 0:01:08.7]} 34. Ne8+ {[%clk 0:02:57]} 34...
Kg6 {[%clk 0:01:02.9]} 35. Nd6 {[%clk 0:02:43]} 35... Nc5 {[%clk 0:01:01.6]} 36.
Nc8 {[%clk 0:02:25.9]} 36... Nxb3 {[%clk 0:00:59.3]} 37. Nxa7 {[%clk 0:02:26.6]}
37... Nc5 {[%clk 0:00:31.5]} 38. Nxc6 {[%clk 0:02:23.9]} 38... Nxa4 {[%clk
0:00:33.1]} 39. Kd3 {[%clk 0:02:19.2]} 39... Kf5 {[%clk 0:00:30.9]} 40. f3
{[%clk 0:02:05.5]} 40... Ke6 {[%clk 0:00:13.5]} 41. Kd4 {[%clk 0:01:55.9]} 41...
f6 {[%clk 0:00:11.4]} 42. e4 {[%clk 0:01:49.6]} 42... Kd6 {[%clk 0:00:12.4]} 43.
Nb4 {[%clk 0:01:46.9]} 43... Nc5 {[%clk 0:00:13.2]} 44. f4 {[%clk 0:01:39.9]}
44... Nb3+ {[%clk 0:00:07]} 45. Kd3 {[%clk 0:01:32.8]} 45... Nc5+ {[%clk
0:00:08.1]} 46. Kd4 {[%clk 0:01:33.2]} 46... Nb3+ {[%clk 0:00:09.6]} 47. Kd3
{[%clk 0:01:28.4]} 47... Nc5+ {[%clk 0:00:06.6]} 48. Kd4 {[%clk 0:01:28.4]}
1/2-1/2

[Event "GrandPrix_30.05"]
[Site "Chess.com"]
[Date "2020.05.30"]
[Round "1"]
[White "Grebnev_A"]
[Black "Alexander_Donchenko"]
[Result "0-1"]
[WhiteElo "2204"]
[BlackElo "2737"]
[TimeControl "600+2"]
[EndTime "8:22:11 PDT"]
[Termination "Alexander_Donchenko won by resignation"]

1. c4 {[%clk 0:10:01]} 1... e5 {[%clk 0:09:55.3]} 2. Nc3 {[%clk 0:10:01.4]} 2...
Bb4 {[%clk 0:09:55.8]} 3. Nd5 {[%clk 0:10:01.5]} 3... a5 {[%clk 0:09:56.2]} 4.
g3 {[%clk 0:10:02.4]} 4... Ne7 {[%clk 0:09:53.2]} 5. Nxe7 {[%clk 0:10:01.5]}
5... Qxe7 {[%clk 0:09:53.7]} 6. Bg2 {[%clk 0:10:03.4]} 6... O-O {[%clk
0:09:50.3]} 7. a3 {[%clk 0:10:03.6]} 7... Bc5 {[%clk 0:09:50.6]} 8. d3 {[%clk
0:10:04.2]} 8... d6 {[%clk 0:09:47.4]} 9. e3 {[%clk 0:09:46.8]} 9... f5 {[%clk
0:09:29.5]} 10. Ne2 {[%clk 0:09:47]} 10... f4 {[%clk 0:09:25.9]} 11. Nc3 {[%clk
0:09:13.9]} 11... fxe3 {[%clk 0:09:02.4]} 12. Bxe3 {[%clk 0:09:12.3]} 12... Bxe3
{[%clk 0:08:58.7]} 13. fxe3 {[%clk 0:09:14.2]} 13... c6 {[%clk 0:08:57.7]} 14.
Qe2 {[%clk 0:09:05.8]} 14... Na6 {[%clk 0:08:40.2]} 15. Rf1 {[%clk 0:08:27.2]}
15... Be6 {[%clk 0:08:25]} 16. O-O-O {[%clk 0:08:09]} 16... Rxf1 {[%clk
0:07:48.6]} 17. Rxf1 {[%clk 0:07:48.2]} 17... Rb8 {[%clk 0:06:31.5]} 18. d4
{[%clk 0:06:48.9]} 18... Bf7 {[%clk 0:06:13.3]} 19. d5 {[%clk 0:05:30.7]} 19...
Nc5 {[%clk 0:04:50.4]} 20. dxc6 {[%clk 0:03:22.1]} 20... bxc6 {[%clk 0:04:27.2]}
21. Bxc6 {[%clk 0:03:22.2]} 21... e4 {[%clk 0:04:27.5]} 22. Rxf7 {[%clk
0:01:14.9]} 22... Kxf7 {[%clk 0:04:09.1]} 23. Qh5+ {[%clk 0:01:10.2]} 23... Kg8
{[%clk 0:03:58.9]} 24. Qd5+ {[%clk 0:00:57.5]} 24... Kh8 {[%clk 0:03:54.1]} 25.
Nxe4 {[%clk 0:00:58.4]} 25... Nxe4 {[%clk 0:02:48.6]} 26. Qxe4 {[%clk
0:00:59.6]} 26... Qf6 {[%clk 0:02:49.3]} 27. Qd4 {[%clk 0:00:39.1]} 27... Qf1+
{[%clk 0:02:48.4]} 28. Kc2 {[%clk 0:00:40.5]} 28... Qe2+ {[%clk 0:02:43]} 29.
Kb1 {[%clk 0:00:26.5]} 29... Qxh2 {[%clk 0:02:40.1]} 30. g4 {[%clk 0:00:19.3]}
30... Qe2 {[%clk 0:01:55.1]} 31. Bd5 {[%clk 0:00:13]} 31... h6 {[%clk
0:01:42.5]} 32. Bc6 {[%clk 0:00:07.5]} 32... Rb3 {[%clk 0:01:25.3]} 33. Bb5
{[%clk 0:00:03.2]} 33... Rd3 {[%clk 0:00:55.2]} 34. Qe4 {[%clk 0:00:03.7]} 34...
Qd1+ {[%clk 0:00:50.5]} 35. Ka2 {[%clk 0:00:03]} 35... Qb3+ {[%clk 0:00:52]} 36.
Ka1 {[%clk 0:00:04.6]} 36... Rd1+ {[%clk 0:00:53.1]} 37. Qb1 {[%clk 0:00:06.5]}
37... Rxb1+ {[%clk 0:00:53.8]} 38. Kxb1 {[%clk 0:00:08.4]} 38... Qxe3 {[%clk
0:00:54.7]} 39. Kc2 {[%clk 0:00:10.3]} 39... Qe2+ {[%clk 0:00:53.3]} 40. Kc3
{[%clk 0:00:12.2]} 40... Qxg4 {[%clk 0:00:53.8]} 41. b4 {[%clk 0:00:14.1]} 41...
Qf3+ {[%clk 0:00:53.7]} 42. Kd4 {[%clk 0:00:15.2]} 42... Qxa3 {[%clk 0:00:53.9]}
0-1

[Event "GrandPrix_30.05"]
[Site "Chess.com"]
[Date "2020.05.30"]
[Round "1"]
[White "MasterSonnevanck2"]
[Black "Novoselski"]
[Result "1-0"]
[WhiteElo "2132"]
[BlackElo "2344"]
[TimeControl "600+2"]
[EndTime "8:22:21 PDT"]
[Termination "MasterSonnevanck2 won by resignation"]

1. d4 {[%clk 0:10:01.2]} 1... Nf6 {[%clk 0:09:58.4]} 2. c4 {[%clk 0:10:01.1]}
2... e6 {[%clk 0:09:57.9]} 3. Nc3 {[%clk 0:10:01.6]} 3... Bb4 {[%clk 0:09:58.1]}
4. f3 {[%clk 0:10:02.3]} 4... d5 {[%clk 0:09:55]} 5. a3 {[%clk 0:10:00.8]} 5...
Be7 {[%clk 0:09:53.8]} 6. e4 {[%clk 0:10:00.1]} 6... dxe4 {[%clk 0:09:45.9]} 7.
fxe4 {[%clk 0:10:00.1]} 7... Nc6 {[%clk 0:09:45.9]} 8. Nf3 {[%clk 0:09:47.6]}
8... O-O {[%clk 0:09:21]} 9. e5 {[%clk 0:09:18.8]} 9... Ne8 {[%clk 0:09:11]} 10.
Bd3 {[%clk 0:08:32.1]} 10... f5 {[%clk 0:09:00.3]} 11. d5 {[%clk 0:08:07.9]}
11... Nb8 {[%clk 0:08:47.1]} 12. O-O {[%clk 0:08:04.9]} 12... g6 {[%clk
0:08:31.3]} 13. Kh1 {[%clk 0:07:26.9]} 13... a5 {[%clk 0:08:23.2]} 14. Bh6
{[%clk 0:07:05.9]} 14... Ng7 {[%clk 0:08:21.5]} 15. Qd2 {[%clk 0:07:01.2]} 15...
Na6 {[%clk 0:08:18.9]} 16. Rad1 {[%clk 0:06:58.6]} 16... Nc5 {[%clk 0:08:10.9]}
17. Bc2 {[%clk 0:06:58.8]} 17... a4 {[%clk 0:08:05]} 18. Be3 {[%clk 0:06:30.5]}
18... b6 {[%clk 0:08:02.4]} 19. Bxc5 {[%clk 0:05:42.5]} 19... bxc5 {[%clk
0:07:57.5]} 20. Bxa4 {[%clk 0:05:36.5]} 20... Bb7 {[%clk 0:07:33.5]} 21. Qe3
{[%clk 0:05:06.8]} 21... f4 {[%clk 0:07:13.2]} 22. Qe2 {[%clk 0:04:42.8]} 22...
Nf5 {[%clk 0:07:07]} 23. Bc2 {[%clk 0:04:18.6]} 23... Ne3 {[%clk 0:07:02]} 24.
Rfe1 {[%clk 0:03:56.1]} 24... Qe8 {[%clk 0:06:25.8]} 25. Be4 {[%clk 0:03:28.5]}
25... c6 {[%clk 0:06:06.6]} 26. d6 {[%clk 0:03:20.9]} 26... Bd8 {[%clk
0:06:05.7]} 27. Rd2 {[%clk 0:03:05.2]} 27... g5 {[%clk 0:05:41.2]} 28. d7 {[%clk
0:02:39.5]} 28... Qf7 {[%clk 0:05:30]} 29. Rd6 {[%clk 0:02:37.5]} 29... Be7
{[%clk 0:04:49.5]} 30. Bxc6 {[%clk 0:02:27.8]} 30... Bxd6 {[%clk 0:04:31.5]} 31.
Bxb7 {[%clk 0:02:24.7]} 31... Rab8 {[%clk 0:04:28.7]} 32. Bc8 {[%clk 0:01:49.6]}
32... Be7 {[%clk 0:04:25.4]} 33. Ne4 {[%clk 0:01:49.6]} 33... g4 {[%clk
0:04:16]} 34. Nfg5 {[%clk 0:01:28.9]} 34... Bxg5 {[%clk 0:03:51.9]} 35. Nxg5
{[%clk 0:01:27.7]} 35... Qe7 {[%clk 0:03:49.2]} 36. Nxe6 {[%clk 0:01:24.4]}
36... Qh4 {[%clk 0:02:52.7]} 37. Nxf8 {[%clk 0:00:54.4]} 37... Kxf8 {[%clk
0:02:51.4]} 38. Qd2 {[%clk 0:00:33.4]} 38... Qd8 {[%clk 0:02:39.6]} 39. Qd6+
{[%clk 0:00:31]} 39... Kg8 {[%clk 0:02:37.6]} 40. e6 {[%clk 0:00:19.6]} 40...
Nf5 {[%clk 0:02:31.7]} 41. Qxb8 {[%clk 0:00:19.1]} 41... f3 {[%clk 0:02:26.9]}
42. Qf4 {[%clk 0:00:13.6]} 42... fxg2+ {[%clk 0:02:22.4]} 43. Kg1 {[%clk
0:00:13.7]} 43... Ne7 {[%clk 0:02:01.8]} 44. Qxg4+ {[%clk 0:00:13.9]} 44... Kh8
{[%clk 0:02:01]} 45. Qxg2 {[%clk 0:00:13.8]} 45... Ng6 {[%clk 0:01:45.5]} 46.
Rf1 {[%clk 0:00:09.9]} 46... Qh4 {[%clk 0:01:38.1]} 47. Qg3 {[%clk 0:00:07.2]}
47... Qd4+ {[%clk 0:01:35.2]} 48. Kh1 {[%clk 0:00:08.1]} 48... Qe4+ {[%clk
0:01:33.8]} 49. Qg2 {[%clk 0:00:08.7]} 49... Qd4 {[%clk 0:01:32.6]} 50. e7
{[%clk 0:00:08.5]} 1-0

[Event "GrandPrix_30.05"]
[Site "Chess.com"]
[Date "2020.05.30"]
[Round "1"]
[White "RussianChessFighter"]
[Black "DanielDardha2005"]
[Result "0-1"]
[WhiteElo "2121"]
[BlackElo "2505"]
[TimeControl "600+2"]
[EndTime "8:22:31 PDT"]
[Termination "DanielDardha2005 won by resignation"]

1. c4 {[%clk 0:10:01.2]} 1... c5 {[%clk 0:09:59]} 2. Nc3 {[%clk 0:10:00.4]} 2...
Nc6 {[%clk 0:09:58.8]} 3. g3 {[%clk 0:10:01.7]} 3... g6 {[%clk 0:09:58.9]} 4.
Bg2 {[%clk 0:10:02.7]} 4... Bg7 {[%clk 0:10:00.3]} 5. Nh3 {[%clk 0:10:03.8]}
5... e5 {[%clk 0:10:01.6]} 6. O-O {[%clk 0:10:02]} 6... Nge7 {[%clk 0:10:02.8]}
7. d3 {[%clk 0:09:31.5]} 7... O-O {[%clk 0:10:02.3]} 8. a3 {[%clk 0:09:30.2]}
8... d6 {[%clk 0:10:01.9]} 9. Rb1 {[%clk 0:09:30.7]} 9... a5 {[%clk 0:10:02.2]}
10. f4 {[%clk 0:08:29.9]} 10... Bxh3 {[%clk 0:09:28.7]} 11. Bxh3 {[%clk
0:08:29.7]} 11... exf4 {[%clk 0:09:30]} 12. Bxf4 {[%clk 0:08:30]} 12... d5
{[%clk 0:09:31.4]} 13. cxd5 {[%clk 0:08:16.6]} 13... Nxd5 {[%clk 0:09:31.4]} 14.
Nxd5 {[%clk 0:08:18]} 14... Qxd5 {[%clk 0:09:32.1]} 15. Bg2 {[%clk 0:08:19.5]}
15... Qd7 {[%clk 0:09:30.1]} 16. Kh1 {[%clk 0:07:37.9]} 16... Rad8 {[%clk
0:09:22.8]} 17. Qb3 {[%clk 0:07:17.1]} 17... Kh8 {[%clk 0:08:46.8]} 18. Rbc1
{[%clk 0:07:05]} 18... Rfe8 {[%clk 0:07:56.8]} 19. Bg5 {[%clk 0:06:19.1]} 19...
f6 {[%clk 0:06:57]} 20. Bxf6 {[%clk 0:05:27.9]} 20... Bxf6 {[%clk 0:06:54.8]}
21. Rxf6 {[%clk 0:05:29.8]} 21... Nd4 {[%clk 0:06:54.9]} 22. Qxb7 {[%clk
0:05:01.8]} 22... Qxb7 {[%clk 0:06:14.5]} 23. Bxb7 {[%clk 0:05:03.7]} 23... Rxe2
{[%clk 0:05:23.5]} 24. Rxc5 {[%clk 0:04:53.4]} 24... Kg7 {[%clk 0:05:04]} 25.
Rf1 {[%clk 0:04:15.4]} 25... Rxb2 {[%clk 0:04:53.6]} 26. Rc7+ {[%clk 0:03:16.3]}
26... Kh6 {[%clk 0:04:52.6]} 27. Rff7 {[%clk 0:03:01.6]} 27... Re8 {[%clk
0:04:19.4]} 28. Be4 {[%clk 0:02:33.8]} 28... Kg5 {[%clk 0:03:27.9]} 29. Rxh7
{[%clk 0:01:46.5]} 29... Nf5 {[%clk 0:02:27.6]} 30. Rc5 {[%clk 0:00:59.1]} 30...
Ra2 {[%clk 0:01:36.7]} 31. Rg7 {[%clk 0:00:17.9]} 31... Kh6 {[%clk 0:00:56.1]}
32. Rb7 {[%clk 0:00:17.5]} 32... Ne3 {[%clk 0:00:48]} 33. Rb1 {[%clk 0:00:09.9]}
33... Rf8 {[%clk 0:00:49.1]} 34. Rcc1 {[%clk 0:00:05.8]} 34... Rff2 {[%clk
0:00:49.7]} 35. Re1 {[%clk 0:00:07]} 35... Ng4 {[%clk 0:00:33.8]} 36. h4 {[%clk
0:00:07.1]} 36... Rh2+ {[%clk 0:00:34]} 37. Kg1 {[%clk 0:00:08.4]} 37... Rh3
{[%clk 0:00:35.7]} 38. Bg2 {[%clk 0:00:02.4]} 38... Rxg3 {[%clk 0:00:36.6]} 0-1

[Event "GrandPrix_30.05"]
[Site "Chess.com"]
[Date "2020.05.30"]
[Round "1"]
[White "Flawless_Fighter"]
[Black "EvgenyRomanov"]
[Result "1/2-1/2"]
[WhiteElo "2281"]
[BlackElo "2051"]
[TimeControl "600+2"]
[EndTime "8:22:32 PDT"]
[Termination "Game drawn by repetition"]

1. e4 {[%clk 0:09:59.7]} 1... e6 {[%clk 0:09:41.7]} 2. d4 {[%clk 0:09:59.3]}
2... d5 {[%clk 0:09:42.7]} 3. Nd2 {[%clk 0:09:51.3]} 3... Nf6 {[%clk 0:09:35.6]}
4. e5 {[%clk 0:09:49.4]} 4... Nfd7 {[%clk 0:09:36]} 5. Bd3 {[%clk 0:09:49.7]}
5... c5 {[%clk 0:09:33.8]} 6. c3 {[%clk 0:09:50.8]} 6... b6 {[%clk 0:09:29.7]}
7. a4 {[%clk 0:08:53.7]} 7... Ba6 {[%clk 0:09:14.9]} 8. Bb5 {[%clk 0:08:52.2]}
8... Bb7 {[%clk 0:09:04.2]} 9. Ne2 {[%clk 0:08:42.6]} 9... c4 {[%clk 0:08:31.9]}
10. a5 {[%clk 0:08:08.8]} 10... a6 {[%clk 0:08:24.5]} 11. Bxd7+ {[%clk
0:08:08.7]} 11... Nxd7 {[%clk 0:08:18.8]} 12. axb6 {[%clk 0:08:06]} 12... Nxb6
{[%clk 0:08:09.8]} 13. O-O {[%clk 0:08:05.1]} 13... a5 {[%clk 0:08:06.4]} 14.
Nf3 {[%clk 0:07:43.2]} 14... Be7 {[%clk 0:07:59]} 15. Nf4 {[%clk 0:07:40]} 15...
h5 {[%clk 0:07:52.7]} 16. h4 {[%clk 0:07:32.2]} 16... a4 {[%clk 0:07:29.7]} 17.
Ng5 {[%clk 0:07:21.1]} 17... Bxg5 {[%clk 0:05:10.2]} 18. hxg5 {[%clk 0:07:21.5]}
18... g6 {[%clk 0:05:11.2]} 19. Qc2 {[%clk 0:06:39.4]} 19... Qe7 {[%clk
0:05:02.1]} 20. Re1 {[%clk 0:06:39.5]} 20... Bc6 {[%clk 0:05:01.5]} 21. Re3
{[%clk 0:06:08.6]} 21... Nc8 {[%clk 0:04:06.8]} 22. Rf3 {[%clk 0:06:08.8]} 22...
Rg8 {[%clk 0:04:05.3]} 23. Rh3 {[%clk 0:05:31.6]} 23... Qb7 {[%clk 0:03:58.9]}
24. f3 {[%clk 0:04:38.7]} 24... Ne7 {[%clk 0:03:59.2]} 25. g4 {[%clk 0:04:39]}
25... hxg4 {[%clk 0:04:01]} 26. fxg4 {[%clk 0:04:40.3]} 26... Kd7 {[%clk
0:03:45.3]} 27. Rh7 {[%clk 0:04:33.2]} 27... Raf8 {[%clk 0:03:30.5]} 28. Qh2
{[%clk 0:04:32.3]} 28... Qb3 {[%clk 0:03:06]} 29. Be3 {[%clk 0:04:31.8]} 29...
a3 {[%clk 0:02:36.1]} 30. Rxa3 {[%clk 0:03:49.9]} 30... Qd1+ {[%clk 0:02:35.2]}
31. Kf2 {[%clk 0:03:51.1]} 31... Qxg4 {[%clk 0:01:26.3]} 32. Ra7+ {[%clk
0:03:51]} 32... Kd8 {[%clk 0:01:18.5]} 33. Ne2 {[%clk 0:03:16.3]} 33... Qf5+
{[%clk 0:00:58.7]} 34. Bf4 {[%clk 0:03:12.4]} 34... Nc8 {[%clk 0:00:52.3]} 35.
Ra1 {[%clk 0:02:48.8]} 35... Qc2 {[%clk 0:00:51.4]} 36. Bc1 {[%clk 0:02:34.3]}
36... Kc7 {[%clk 0:00:39.9]} 37. Qf4 {[%clk 0:02:23.6]} 37... Rh8 {[%clk
0:00:32.1]} 38. Rxf7+ {[%clk 0:02:01.5]} 38... Rxf7 {[%clk 0:00:32.3]} 39. Qxf7+
{[%clk 0:02:03.4]} 39... Bd7 {[%clk 0:00:33.2]} 40. Bf4 {[%clk 0:01:18.9]} 40...
Rh3 {[%clk 0:00:32.9]} 41. Rg1 {[%clk 0:01:01.2]} 41... Qe4 {[%clk 0:00:27]} 42.
Bg3 {[%clk 0:00:41.8]} 42... Qc2 {[%clk 0:00:27.9]} 43. Bf4 {[%clk 0:00:39.8]}
43... Qe4 {[%clk 0:00:20.1]} 44. Bg3 {[%clk 0:00:40.8]} 44... Qc2 {[%clk
0:00:20.6]} 45. Bf4 {[%clk 0:00:39.8]} 1/2-1/2

[Event "GrandPrix_30.05"]
[Site "Chess.com"]
[Date "2020.05.30"]
[Round "1"]
[White "PlayChessSimple"]
[Black "GeorgMeier"]
[Result "0-1"]
[WhiteElo "2184"]
[BlackElo "2649"]
[TimeControl "600+2"]
[EndTime "8:22:38 PDT"]
[Termination "GeorgMeier won by resignation"]

1. e4 {[%clk 0:10:01.5]} 1... e6 {[%clk 0:09:58.2]} 2. d4 {[%clk 0:10:02]} 2...
d5 {[%clk 0:09:59]} 3. e5 {[%clk 0:10:03]} 3... c5 {[%clk 0:09:59.9]} 4. c3
{[%clk 0:10:02.5]} 4... Nc6 {[%clk 0:10:01]} 5. Nf3 {[%clk 0:10:03.3]} 5... Qb6
{[%clk 0:10:00.7]} 6. Be2 {[%clk 0:10:03.4]} 6... cxd4 {[%clk 0:09:48.9]} 7.
cxd4 {[%clk 0:10:02.7]} 7... Nh6 {[%clk 0:09:45.4]} 8. Bxh6 {[%clk 0:10:00.3]}
8... gxh6 {[%clk 0:09:46.1]} 9. Qd2 {[%clk 0:09:57.8]} 9... Bg7 {[%clk
0:09:25.3]} 10. Nc3 {[%clk 0:09:57.4]} 10... O-O {[%clk 0:09:25.8]} 11. O-O
{[%clk 0:09:57.8]} 11... f6 {[%clk 0:09:15.5]} 12. exf6 {[%clk 0:09:53.6]} 12...
Rxf6 {[%clk 0:09:17.4]} 13. Na4 {[%clk 0:08:36]} 13... Qc7 {[%clk 0:09:17.6]}
14. Rac1 {[%clk 0:08:32.8]} 14... Qf4 {[%clk 0:09:12.2]} 15. Qe3 {[%clk
0:08:26.8]} 15... Rf7 {[%clk 0:08:36.1]} 16. Rfd1 {[%clk 0:08:13.4]} 16... Rb8
{[%clk 0:07:54.8]} 17. Nc5 {[%clk 0:08:10.1]} 17... Qd6 {[%clk 0:07:19.4]} 18.
b4 {[%clk 0:07:05.4]} 18... a6 {[%clk 0:04:55]} 19. a3 {[%clk 0:07:05.4]} 19...
Rf8 {[%clk 0:04:29.1]} 20. g3 {[%clk 0:06:46.1]} 20... Ne7 {[%clk 0:04:20]} 21.
Ne5 {[%clk 0:06:39.8]} 21... Nf5 {[%clk 0:04:20]} 22. Qc3 {[%clk 0:05:58.5]}
22... Nxd4 {[%clk 0:04:15.7]} 23. Qxd4 {[%clk 0:05:58.7]} 23... Bxe5 {[%clk
0:03:59.5]} 24. Qg4+ {[%clk 0:05:48.1]} 24... Bg7 {[%clk 0:03:56.7]} 25. Qh5
{[%clk 0:05:02.5]} 25... Kh8 {[%clk 0:03:26.1]} 26. Bg4 {[%clk 0:04:41.8]} 26...
b6 {[%clk 0:03:17.4]} 27. Nd3 {[%clk 0:04:27.7]} 27... Bd7 {[%clk 0:03:04.9]}
28. Nf4 {[%clk 0:04:17.8]} 28... Rxf4 {[%clk 0:02:55.8]} 29. gxf4 {[%clk
0:04:18.1]} 29... Qxf4 {[%clk 0:02:57.4]} 30. Qh3 {[%clk 0:04:14]} 30... Bb2
{[%clk 0:01:52.4]} 31. Rc2 {[%clk 0:03:44.4]} 31... Be5 {[%clk 0:01:30.7]} 32.
Bxe6 {[%clk 0:03:04.9]} 32... Rg8+ {[%clk 0:01:26]} 33. Kf1 {[%clk 0:03:04.3]}
33... Bb5+ {[%clk 0:01:16.2]} 34. Rd3 {[%clk 0:02:31.9]} 34... Qe4 {[%clk
0:01:05.6]} 35. Bf5 {[%clk 0:02:17.7]} 35... Qh1+ {[%clk 0:00:52.6]} 36. Ke2
{[%clk 0:02:18.2]} 36... Bf4 {[%clk 0:00:53.6]} 37. Rc3 {[%clk 0:00:35.9]} 37...
Re8+ {[%clk 0:00:45.3]} 38. Be6 {[%clk 0:00:30.7]} 38... Qe4+ {[%clk 0:00:45.8]}
39. Kf1 {[%clk 0:00:29.1]} 39... Qh1+ {[%clk 0:00:44.1]} 40. Ke2 {[%clk
0:00:26.4]} 40... Qe4+ {[%clk 0:00:45.5]} 41. Kf1 {[%clk 0:00:14.4]} 41... Qxe6
{[%clk 0:00:44.5]} 42. Qxe6 {[%clk 0:00:02.4]} 42... Rxe6 {[%clk 0:00:45]} 43.
Rc8+ {[%clk 0:00:03]} 43... Kg7 {[%clk 0:00:44.6]} 0-1